{"text_format":"1","workbook":"xlsx","n_sheets":4,"sheets":["DOTACION","DIARIO","Información","DOTACION CASA"],"not_rendered":{"charts":0,"images":1,"macros":0,"external_links":0,"defined_names":7,"comments":0,"pivot_tables":0},"unopened":[],"bounds":{"document_bytes":16777216,"sheet_cells":100000,"rows_first":2000,"rows_last":500,"rows_between":2000,"halvings":0,"cell_chars":16384,"cell_head_chars":4096},"cells_cut":0,"cells_raw":0,"read":"whole","date_system":"1900"}

{"sheet":"DOTACION","index":0,"n_rows":113,"n_cols":13,"rows_kept":113,"cut":false,"hidden":false,"merged":[[83,10,83,12],[0,1,0,12],[1,10,1,12],[80,1,80,12],[82,1,82,4],[82,6,82,12],[83,6,83,9],[105,2,105,4],[112,2,112,4],[112,10,112,12],[98,1,98,4],[98,6,98,12],[99,2,99,4],[99,10,99,12],[111,1,111,4],[111,6,111,12],[91,2,91,4],[92,2,92,4],[93,2,93,4],[94,2,94,4],[95,2,95,4],[96,2,96,4],[100,2,100,4],[101,2,101,4],[122,2,122,4],[118,6,118,9],[119,6,119,9],[120,6,120,9],[121,6,121,9],[122,6,122,9],[115,2,115,4],[116,2,116,4],[117,2,117,4],[118,2,118,4],[119,2,119,4],[120,2,120,4],[107,6,107,9],[108,6,108,9],[106,2,106,4],[107,2,107,4],[108,2,108,4],[109,2,109,4],[113,2,113,4],[114,2,114,4],[121,2,121,4],[102,2,102,4],[103,2,103,4],[104,2,104,4],[96,6,96,9],[100,6,100,9],[101,6,101,9],[102,6,102,9],[103,6,103,9],[104,6,104,9],[93,6,93,9],[94,6,94,9],[95,6,95,9],[1,2,1,7],[1,8,1,9],[84,2,84,4],[85,2,85,4],[86,2,86,4],[87,2,87,4],[88,2,88,4],[89,2,89,4],[90,2,90,4],[83,2,83,4],[84,6,84,9],[85,6,85,9],[86,6,86,9],[87,6,87,9],[88,6,88,9],[89,6,89,9],[90,6,90,9],[91,6,91,9],[92,6,92,9],[91,10,91,12],[92,10,92,12],[93,10,93,12],[94,10,94,12],[95,10,95,12],[96,10,96,12],[86,10,86,12],[84,10,84,12],[87,10,87,12],[88,10,88,12],[89,10,89,12],[90,10,90,12],[116,10,116,12],[115,10,115,12],[114,10,114,12],[113,10,113,12],[112,6,112,9],[99,6,99,9],[122,10,122,12],[121,10,121,12],[120,10,120,12],[119,10,119,12],[118,10,118,12],[117,10,117,12],[109,6,109,9],[116,6,116,9],[117,6,117,9],[100,10,100,12],[101,10,101,12],[102,10,102,12],[103,10,103,12],[113,6,113,9],[114,6,114,9],[115,6,115,9],[105,6,105,9],[106,6,106,9]]}
[]
[null,null,"ASISTENCIA DIARIA",null,null,null,null,null,"FECHA :",null,"2017-06-05"]
[]
[null,"ESPECIALIDAD","Dotación","Dotacion Act","Fallas","Permisos","Vacaciones","Mutual","Examen ","Licencia","Traslado","Finiquitados","Total Asist."]
[]
[null,"ADMINISTRADOR DE OBRA",1,null,null,null,null,null,null,null,null,null,{"$f":"C6-E6-F6-G6-H6-I6-J6-K6-L6","v":1}]
[null,"ADMINISTRATIVO",1,null,null,null,null,null,null,null,null,null,{"$f":"C7-E7-F7-G7-H7-I7-J7-K7-L7","v":1}]
[null,"ASIST OFICINA TECNICA",1,null,null,null,null,null,null,null,null,null,1]
[null,"ASIST REMUN OBRA",1,null,null,null,null,null,null,null,null,null,1]
[null,"DIGITADOR",1,null,null,null,null,null,null,null,null,null,1]
[null,"ENCARG OFICINA TECNICA",1,null,null,null,null,null,null,null,null,null,1]
[null,"ENCARGADA CALIDAD",1,null,null,null,null,null,null,null,null,null,1]
[null,"ENCARGADO BODEGA",1,null,null,null,null,null,null,null,null,null,1]
[null,"JEFE DE TERRENO",1,null,1,null,null,null,null,null,null,null,0]
[null,"PAÑOLERO",2,null,null,null,null,null,null,null,null,null,2]
[null,"PREVENCION RIESGOS",2,null,null,null,null,null,null,null,null,null,2]
[null,"ENCARGADA DE SINTOMAS COVID",1,null,null,null,null,null,null,null,null,null,1]
[null,null,null,null,null,null,null,null,null,null,null,null,0]
[]
[]
[]
[]
[]
[null,"SUB/TOTAL PERSONAL ADMINISTRATIVO",{"$f":"SUM(C6:C23)","v":14},null,{"$f":"SUM(E6:E23)","v":1},0,0,0,0,0,{"$f":"SUM(K6:K23)","v":0},null,{"$f":"SUM(M6:M23)","v":13}]
[]
[null,"CAPATAZ",4,null,null,null,null,null,null,null,null,null,{"$f":"C26-E26-F26-G26-H26-I26-J26-K26-L26","v":4}]
[null,"RIGGERS",3,null,null,null,null,null,null,null,null,null,3]
[null,"TRAZADORES",3,null,null,null,null,null,null,null,null,null,3]
[null,"AYUDANTE TRAZADOR",2,null,null,null,null,null,null,null,null,null,2]
[null,"CARPINTERO",5,null,null,null,null,null,null,null,null,null,5]
[null,"MAESTRO CARPINTERO",5,null,null,null,null,null,null,null,null,null,5]
[null,"AYUDANTE CARPINTERO",2,null,null,null,null,null,null,null,null,null,2]
[null,"ELECTRICO",1,null,null,null,null,null,null,null,null,null,1]
[null,"JORNAL",4,null,null,null,null,null,null,null,null,null,4]
[null,"JORNAL ORDEN Y ASEO",4,null,null,null,null,null,null,null,null,null,4]
[null,"JORNAL VARIOS",10,null,null,null,null,null,null,null,null,null,10]
[null,"MAESTRO ALBAÑIL",2,null,null,null,null,null,null,null,null,null,2]
[null,"PORTERO",1,null,null,null,null,null,null,null,null,null,1]
[null,null,null,null,null,null,null,null,null,null,null,null,0]
[null,null,null,null,null,null,null,null,null,null,null,null,0]
[null,null,null,null,null,null,null,null,null,null,null,null,0]
[null,null,null,null,null,null,null,null,null,null,null,null,0]
[null,"SUB/TOTAL PERSONAL TERRENO",{"$f":"SUM(C26:C42)","v":46},null,{"$f":"SUM(E26:E42)","v":0},{"$f":"SUM(F26:F42)","v":0},{"$f":"SUM(G26:G42)","v":0},{"$f":"SUM(H26:H42)","v":0},{"$f":"SUM(I26:I42)","v":0},{"$f":"SUM(J26:J42)","v":0},{"$f":"SUM(K26:K42)","v":0},{"$f":"SUM(L26:L42)","v":0},{"$f":"SUM(M26:M42)","v":46}]
[]
[null,"TOTAL PERSONAL PACAL",{"$f":"C24+C43","v":60},null,{"$f":"E24+E43","v":1},0,0,0,0,0,{"$f":"K24+K43","v":0},{"$f":"L24+L43","v":0},{"$f":"SUM(M24,M43)","v":59}]
[null,null,null,null,null,null,null,null,null,null,null,null," "]
[null,"SUB-CONTRATOS","Dotación","Dotacion Act","Fallas","Permisos","Vacaciones","Mutual","Examen ","Licencia","Traslado","Finiquitados","Total Asistencia"]
[]
[]
[]
[]
[]
[]
[]
[]
[]
[]
[]
[null,null,null,null,null,null,null,null,null,null,null,null,{"$f":"C59-E59-F59-G59-H59-I59-J59-K59-L59","v":0}]
[null,null,null,null,null,null,null,null,null,null,null,null,0]
[null,null,null,null,null,null,null,null,null,null,null,null,0]
[null,null,null,null,null,null,null,null,null,null,null,null,0]
[null,null,null,null,null,null,null,null,null,null,null,null,0]
[null,null,null,null,null,null,null,null,null,null,null,null,0]
[null,null,null,null,null,null,null,null,null,null,null,null,0]
[null,null,null,null,null,null,null,null,null,null,null,null,0]
[null,null,null,null,null,null,null,null,null,null,null,null,0]
[null,null,null,null,null,null,null,null,null,null,null,null,0]
[null,null,null,null,null,null,null,null,null,null,null,null,0]
[null,null,null,null,null,null,null,null,null,null,null,null,0]
[null,null,null,null,null,null,null,null,null,null,null,null,0]
[null,null,null,null,null,null,null,null,null,null,null,null,0]
[null,null,null,null,null,null,null,null,null,null,null,null,0]
[null,null,null,null,null,null,null,null,null,null,null,null,0]
[null,null,null,null,null,null,null,null,null,null,null,null,0]
[null,null,null,null,null,null,null,null,null,null,null,null,0]
[null,"SUB TOTAL CONTRATISTAS",{"$f":"SUM(C49:C76)","v":0},null,{"$f":"SUM(E49:E63)","v":0},0,0,0,0,null,0,null,{"$f":"SUM(M49:M76)","v":0}]
[]
[null,"TOTAL GENERAL",{"$f":"C77+C45","v":60},null,1,0,0,0,0,null,0,null,{"$f":"M45+M77","v":59}]
[]
[null,"RESUMEN INASISTENCIA"]
[]
[null,"FALTAS",null,null,null,null,"LICENCIA MEDICA"]
[null,"Nombre","Especialidad",null,null,null,"Nombre",null,null,null,"Especialidad"]
[null,null,null,null,null,0]
[]
[]
[]
[]
[]
[]
[]
[]
[]
[]
[]
[]
[]
[null,"PERMISOS",null,null,null,null,"MUTUAL"]
[null,"Nombre","Especialidad",null,null,null,"Nombre",null,null,null,"Especialidad"]
[]
[]
[]
[]
[]
[]
[]
[]
[]
[]
[]
[null,"EXAMEN MUTUAL",null,null,null,null,"VACACIONES"]
[null,"Nombre","Especialidad",null,null,null,"Nombre",null,null,null,"Especialidad"]

{"sheet":"DIARIO","index":1,"n_rows":65,"n_cols":34,"rows_kept":65,"cut":false,"hidden":false,"merged":[[2,4,2,5],[2,6,2,7]]}
[]
[]
[null,null,null,null,"AÑO"]
[]
["N°","NOMBRE","Cargo","JEFE DIRECTO","2017-06-01","2017-06-02","2017-06-03","2017-06-04","2017-06-05","2017-06-06","2017-06-07","2017-06-08","2017-06-09","2017-06-10","2017-06-11","2017-06-12","2017-06-13","2017-06-14","2017-06-15","2017-06-16","2017-06-17","2017-06-18","2017-06-19","2017-06-20","2017-06-21","2017-06-22","2017-06-23","2017-06-24","2017-06-25","2017-06-26","2017-06-27","2017-06-28","2017-06-29","2017-06-30"]
[1,"BELMAR MORALES RODRIGO","ADMINISTRADOR DE OBRA",null,null,null,"F","X","F"]
[2,"PALMA HERMOSILLA CRISTHIAN ","ADMINISTRATIVO",null,null,null,"X","X","X"]
[3,"GONZALEZ LOPEZ FRANCISCO","ASIST OFICINA TECNICA","IBACETA ARANCIBIA DANIEL ",null,null,"X","X","X"]
[4,"LEON APABLAZA ROBERTO","ASIST REMUN OBRA","PALMA HERMOSILLA CRISTHIAN ",null,null,"X","X","X"]
[5,"HIDALGO  VALLEJOS  JUAN","CAPATAZ","OTAROLA AMARO JOSE ",null,null,"X","X","X"]
[6,"LABRA ANACONA ALEJANDRO","CAPATAZ","OTAROLA AMARO JOSE ",null,null,"X","X","X"]
[7,"LEON ARANCIBIA NELSON","CAPATAZ","OTAROLA AMARO JOSE ",null,null,"X","X","P"]
[8,"TAPIA HERNANDEZ JOHN","CAPATAZ","OTAROLA AMARO JOSE ",null,null,"X","X","X"]
[9,"SEREY HERNANDEZ MARGARITA","DIGITADOR","RUBIO ALIAGA CESAR",null,null,"X","X","X"]
[10,"IBACETA ARANCIBIA DANIEL ","ENCARG OFICINA TECNICA",null,null,null,"X","X","X"]
[11,"GUTIERREZ NIETO VANIA STEPHANI","ENCARGADA CALIDAD",null,null,null,"X","X","X"]
[12,"RUBIO ALIAGA CESAR","ENCARGADO BODEGA",null,null,null,"P","X","P"]
[13,"OTAROLA AMARO JOSE ","JEFE DE TERRENO",null,null,null,"F","X","F"]
[14,"MOLINA ASPE PABLO","PAÑOLERO","RUBIO ALIAGA CESAR",null,null,"LM","LM","LM"]
[15,"MORALES OSSANDON JUAN","PAÑOLERO","RUBIO ALIAGA CESAR",null,null,"X","X","X"]
[16,"BELLENGER OLIVARES NATTY","PREVENCION RIESGOS",null,null,null,"AC","AC","AC"]
[17,"MESIAS DATSAMARI","PREVENCION RIESGOS",null,null,null,"X","X","X"]
[18,"SANCHEZ COTRINA MARY ","ENCARGADA DE SINTOMAS COVID","BELLENGER OLIVARES NATTY",null,null,"X","X","X"]
[19,"LOPEZ ESCOBAR MAURICIO","AYUDANTE CARPINTERO","LABRA ANACONA ALEJANDRO",null,null,"X","X","X"]
[20,"TAPIA OROZCO CESAR","AYUDANTE CARPINTERO","LEON ARANCIBIA NELSON",null,null,"X","X","TR"]
[21,"DIAZ VERGARA ELISEO","AYUDANTE TRAZADOR","TAPIA HERNANDEZ JOHN",null,null,"X","X","X"]
[22,"MUÑOZ MELILLANCA IGNACIO ","AYUDANTE TRAZADOR","LABRA ANACONA ALEJANDRO",null,null,"X","X","X"]
[23,"BRICEÑO MORALES DANIEL","CARPINTERO","LEON ARANCIBIA NELSON",null,null,"X","X","X"]
[24,"JARA FLANDEZ JUAN ","CARPINTERO",null,null,null,"X","X","X"]
[25,"MUÑOZ CARVAJAL CRISTIAN","CARPINTERO","OTAROLA AMARO JOSE ",null,null,"X","X","X"]
[26,"NOCHEZ URRA PABLO","CARPINTERO","LEON ARANCIBIA NELSON",null,null,"X","X","X"]
[27,"VILLARREAL SEVILLA ROQUE","CARPINTERO",null,null,null,"X","X","X"]
[28,"MATURANA EYZAGUIRRE VICTOR","ELECTRICO","OTAROLA AMARO JOSE ",null,null,"X","X","X"]
[29,"CARIAGA MUÑOZ JUAN ","JORNAL","LABRA ANACONA ALEJANDRO",null,null,"X","X","X"]
[30,"ESPINOZA PASTEN JUAN","JORNAL","TAPIA HERNANDEZ JOHN",null,null,"X","X","X"]
[31,"GALEAS VASQUEZ ENRIQUE ","JORNAL","LABRA ANACONA ALEJANDRO",null,null,"X","X","X"]
[32,"ROJAS TORREJON KEBRIAM ","JORNAL",null,null,null,"X","X","X"]
[33,"MIRANDA BOFI MARITZA","JORNAL ORDEN Y ASEO","HIDALGO  VALLEJOS  JUAN",null,null,"X","X","X"]
[34,"RODRIGUEZ CHOQUE MARLENE","JORNAL ORDEN Y ASEO","HIDALGO  VALLEJOS  JUAN",null,null,"X","X","X"]
[35,"VIVAR CAMPOS JUANA","JORNAL ORDEN Y ASEO","HIDALGO  VALLEJOS  JUAN",null,null,"X","X","X"]
[36,"CARMONA QUILAHUEUQE ROSA","JORNAL ORDEN Y ASEO","HIDALGO  VALLEJOS  JUAN",null,null,"X","X","X"]
[37,"AGUILERA ZELAYA LUIS","JORNAL VARIOS","HIDALGO  VALLEJOS  JUAN",null,null,"X","X","X"]
[38,"ARANCIBIA ARANCIBIA MICHAEL","JORNAL VARIOS","LABRA ANACONA ALEJANDRO",null,null,"X","X","X"]
[39,"BERRIOS ARANCIBIA CARLOS ","JORNAL VARIOS",null,null,null,"X","X","X"]
[40,"HERRERA MOLINA LUIS","JORNAL VARIOS","LABRA ANACONA ALEJANDRO",null,null,"X","X","X"]
[41,"MIRANDA MENAY GABRIEL","JORNAL VARIOS","LABRA ANACONA ALEJANDRO",null,null,"X","X","X"]
[42,"OSORIO  RIQUELME, PAULO","JORNAL VARIOS","LEON ARANCIBIA NELSON",null,null,"X","X","X"]
[43,"SUAREZ SILVA PABLO","JORNAL VARIOS","HIDALGO  VALLEJOS  JUAN",null,null,"X","X","X"]
[44,"TORO  ORMEÑO JONATHAN","JORNAL VARIOS","HIDALGO  VALLEJOS  JUAN",null,null,"X","X","X"]
[45,"TORREJON CONTADOR MATIAS","JORNAL VARIOS","HIDALGO  VALLEJOS  JUAN",null,null,"X","X","X"]
[46,"GUTIERREZ  BRAVO VICTOR ","MAESTRO ALBAÑIL","LABRA ANACONA ALEJANDRO",null,null,"X","X","X"]
[47,"OLIVARES ZAPATA DAVID","MAESTRO ALBAÑIL","LEON ARANCIBIA NELSON",null,null,"X","X","X"]
[48,"ACHU ACHU IVAN","MAESTRO CARPINTERO","LEON ARANCIBIA NELSON",null,null,"X","X","X"]
[49,"BALLESTEROS ÑANCO WALDO","MAESTRO CARPINTERO","LEON ARANCIBIA NELSON",null,null,"X","X","X"]
[50,"COLLAO CATALAN JUAN","MAESTRO CARPINTERO","LEON ARANCIBIA NELSON",null,null,"X","X","X"]
[51,"OLGUIN FLORES MARCELO","MAESTRO CARPINTERO","LEON ARANCIBIA NELSON",null,null,"X","X","X"]
[52,"TORRES MONTECINO JEOVANI","MAESTRO CARPINTERO","LEON ARANCIBIA NELSON",null,null,"X","X","X"]
[53,"MONTENEGRO PARRA ANGELO","PORTERO","LABRA ANACONA ALEJANDRO",null,null,"X","X","X"]
[54,"BRAVO HERNANDEZ JUAN","RIGGER","TAPIA HERNANDEZ JOHN",null,null,"X","X","X"]
[55,"MUÑOZ  CADIZ ROBINSON","RIGGER","HIDALGO  VALLEJOS  JUAN",null,null,"X","X","X"]
[56,"VILLEGAS PIZARRO ROBERTO","RIGGER","TAPIA HERNANDEZ JOHN",null,null,"X","X","X"]
[57,"FARFAN BERMEJO ARMANDO ","TRAZADOR","LABRA ANACONA ALEJANDRO",null,null,"X","X","X"]
[58,"GALDAMES MEZA DANIEL","TRAZADOR","TAPIA HERNANDEZ JOHN",null,null,"X","X","X"]
[59,"ORELLANA GALLARDO NICOLAS ","TRAZADOR","HIDALGO  VALLEJOS  JUAN",null,null,"X","X","X"]
[60,"ULLOA MUÑOZ SERGIO","JORNAL VARIOS",null,null,null,"X","X","X"]

{"sheet":"Información","index":2,"n_rows":62,"n_cols":12,"rows_kept":62,"cut":false,"hidden":true,"merged":[]}
[]
[null,null,null,null," "]
[null,"N°","RUT","NOMBRE","ESPECIALIDAD","CAPATAZ"]
[null,1,"10.997.858-2","BELMAR MORALES RODRIGO","ADMINISTRADOR DE OBRA"]
[null,2,"12.923.616-7","PALMA HERMOSILLA CRISTHIAN ","ADMINISTRATIVO"]
[null,3,"19.888.194-5","GONZALEZ LOPEZ FRANCISCO","ASIST OFICINA TECNICA","IBACETA ARANCIBIA DANIEL "]
[null,4,"9.087.569-8","LEON APABLAZA ROBERTO","ASIST REMUN OBRA","PALMA HERMOSILLA CRISTHIAN "]
[null,1,"18.852.853-8","LOPEZ ESCOBAR MAURICIO","AYUDANTE CARPINTERO","LABRA ANACONA ALEJANDRO"]
[null,2,"20.089.592-4","TAPIA OROZCO CESAR","AYUDANTE CARPINTERO","LEON ARANCIBIA NELSON"]
[null,3,"17.972.358-1","DIAZ VERGARA ELISEO","AYUDANTE TRAZADOR","TAPIA HERNANDEZ JOHN"]
[null,4,"20.097.899-4","MUÑOZ MELILLANCA IGNACIO ","AYUDANTE TRAZADOR","LABRA ANACONA ALEJANDRO"]
[null,5,"8.695.621-7","HIDALGO  VALLEJOS  JUAN","CAPATAZ","OTAROLA AMARO JOSE "]
[null,6,"16.550.460-7","LABRA ANACONA ALEJANDRO","CAPATAZ","OTAROLA AMARO JOSE "]
[null,7,"17.165.034-8","LEON ARANCIBIA NELSON","CAPATAZ","OTAROLA AMARO JOSE "]
[null,8,"16.334.790-3","TAPIA HERNANDEZ JOHN","CAPATAZ","OTAROLA AMARO JOSE "]
[null,5,"16.579.483-8","BRICEÑO MORALES DANIEL","CARPINTERO","LEON ARANCIBIA NELSON"]
[null,6,"12.199.684-7","JARA FLANDEZ JUAN ","CARPINTERO"]
[null,7,"15.113.956-6","MUÑOZ CARVAJAL CRISTIAN","CARPINTERO","OTAROLA AMARO JOSE "]
[null,8,"12.600.126-6","NOCHEZ URRA PABLO","CARPINTERO","LEON ARANCIBIA NELSON"]
[null,9,"15.324.198-8","VILLARREAL SEVILLA ROQUE","CARPINTERO"]
[null,9,"17.818.293-5","SEREY HERNANDEZ MARGARITA","DIGITADOR","RUBIO ALIAGA CESAR",null,18,"22.436.695-7","SANCHEZ COTRINA MARY ","ENCARGADA DE SINTOMAS COVID","BELLENGER OLIVARES NATTY"]
[null,10,"18.972.746-1","MATURANA EYZAGUIRRE VICTOR","ELECTRICO","OTAROLA AMARO JOSE "]
[null,10,"19.130.288-5","IBACETA ARANCIBIA DANIEL ","ENCARG OFICINA TECNICA"]
[null,11,"18.679.913-5","GUTIERREZ NIETO VANIA STEPHANI","ENCARGADA CALIDAD"]
[null,12,"13.043.649-8","RUBIO ALIAGA CESAR","ENCARGADO BODEGA"]
[null,13,"19.268.657-1","OTAROLA AMARO JOSE ","JEFE DE TERRENO"]
[null,11,"11.944.041-6","CARIAGA MUÑOZ JUAN ","JORNAL","LABRA ANACONA ALEJANDRO"]
[null,12,"11.729808-6","ESPINOZA PASTEN JUAN","JORNAL","TAPIA HERNANDEZ JOHN","VER ANEXO CAMBIO DE CARGO"]
[null,13,"11.730.966-5","GALEAS VASQUEZ ENRIQUE ","JORNAL","LABRA ANACONA ALEJANDRO"]
[null,14,"20.300.807-4","ROJAS TORREJON KEBRIAM ","JORNAL"]
[null,18,"11.201.099-8","CARMONA QUILAHUEUQE ROSA","JORNAL ORDEN Y ASEO","HIDALGO  VALLEJOS  JUAN"]
[null,15,"9.914.122-0","MIRANDA BOFI MARITZA","JORNAL ORDEN Y ASEO","HIDALGO  VALLEJOS  JUAN"]
[null,16,"11.837.255-7","RODRIGUEZ CHOQUE MARLENE","JORNAL ORDEN Y ASEO","HIDALGO  VALLEJOS  JUAN"]
[null,17,"6.903.940-5","VIVAR CAMPOS JUANA","JORNAL ORDEN Y ASEO","HIDALGO  VALLEJOS  JUAN"]
[null,19,"18.561.917-6","AGUILERA ZELAYA LUIS","JORNAL VARIOS","HIDALGO  VALLEJOS  JUAN"]
[null,20,"15.760.540-2","ARANCIBIA ARANCIBIA MICHAEL","JORNAL VARIOS","LABRA ANACONA ALEJANDRO"]
[null,21,"12.600.249-1","BERRIOS ARANCIBIA CARLOS ","JORNAL VARIOS"]
[null,22,"12.082.864-9","HERRERA MOLINA LUIS","JORNAL VARIOS","LABRA ANACONA ALEJANDRO"]
[null,23,"6.354.395-0","MIRANDA MENAY GABRIEL","JORNAL VARIOS","LABRA ANACONA ALEJANDRO"]
[null,24," 17.646.343-0","OSORIO  RIQUELME, PAULO","JORNAL VARIOS","LEON ARANCIBIA NELSON"]
[null,25,"19.130.885-9","SUAREZ SILVA PABLO","JORNAL VARIOS","HIDALGO  VALLEJOS  JUAN"]
[null,26,"  17412249-0","TORO  ORMEÑO JONATHAN","JORNAL VARIOS","HIDALGO  VALLEJOS  JUAN","TRASLADADO"]
[null,27,"18.853.938-6","TORREJON CONTADOR MATIAS","JORNAL VARIOS"]
[null,42,"19.130.711-9","ULLOA MUÑOZ SERGIO","JORNAL VARIOS"]
[null,28,"17.300.369-2","GUTIERREZ  BRAVO VICTOR ","MAESTRO ALBAÑIL","LABRA ANACONA ALEJANDRO","fin"]
[null,29,"6.270.462-4","OLIVARES ZAPATA DAVID","MAESTRO ALBAÑIL"]
[null,30,"19.488.487-9","ACHU ACHU IVAN","MAESTRO CARPINTERO","LEON ARANCIBIA NELSON"]
[null,31,"18.562.522-2","BALLESTEROS ÑANCO WALDO","MAESTRO CARPINTERO","LEON ARANCIBIA NELSON"]
[null,32,"9.191.363-1","COLLAO CATALAN JUAN","MAESTRO CARPINTERO","HIDALGO  VALLEJOS  JUAN"]
[null,33,"16.030.678-5","OLGUIN FLORES MARCELO","MAESTRO CARPINTERO","LEON ARANCIBIA NELSON"]
[null,34,"15.727.914-9","TORRES MONTECINO JEOVANI","MAESTRO CARPINTERO","LEON ARANCIBIA NELSON"]
[null,14,"16.027.526-K","MOLINA ASPE PABLO","PAÑOLERO","RUBIO ALIAGA CESAR"]
[null,15,"13.362.869-K","MORALES OSSANDON JUAN","PAÑOLERO","RUBIO ALIAGA CESAR"]
[null,35,"21.730.131-9","MONTENEGRO PARRA ANGELO","PORTERO","LABRA ANACONA ALEJANDRO"]
[null,16,"18.677.393-4","BELLENGER OLIVARES NATTY","PREVENCION RIESGOS"]
[null,17,"7.069.798-K","MESIAS DATSAMARI","PREVENCION RIESGOS"]
[null,36,"14.622.593-4","BRAVO HERNANDEZ JUAN","RIGGER","TAPIA HERNANDEZ JOHN"]
[null,37,"10.941.864-1","MUÑOZ  CADIZ ROBINSON","RIGGER","HIDALGO  VALLEJOS  JUAN"]
[null,38,"18.711.126-9","VILLEGAS PIZARRO ROBERTO","RIGGER","LABRA ANACONA ALEJANDRO"]
[null,39,"7.969.022-8","FARFAN BERMEJO ARMANDO ","TRAZADOR","LABRA ANACONA ALEJANDRO"]
[null,40,"17.300.181-9","GALDAMES MEZA DANIEL","TRAZADOR","TAPIA HERNANDEZ JOHN"]
[null,41,"17.645.941-7","ORELLANA GALLARDO NICOLAS ","TRAZADOR","HIDALGO  VALLEJOS  JUAN"]

{"sheet":"DOTACION CASA","index":3,"n_rows":88,"n_cols":26,"rows_kept":88,"cut":false,"hidden":true,"merged":[[87,23,88,25],[87,19,88,21],[46,1,47,1],[46,3,47,3],[46,7,47,7],[46,13,47,13],[46,21,47,21],[46,19,47,19],[46,15,47,15],[5,23,5,25],[46,23,47,23],[7,25,8,25],[46,25,47,25],[46,17,47,17],[5,3,5,17],[7,1,8,1],[46,5,47,5],[46,9,47,9],[46,11,47,11],[5,19,5,21]]}
[]
[]
[]
[]
[]
[null,null,null,"OBRA EDIFICIO  ALTO AMUNATEGUI ",null,null,null,null,null,null,null,null,null,null,null,null,null,null,null,"Fecha :",null,null,null,{"$f":"TODAY()","v":"2021-07-26"}]
[]
[null,"PERSONAL TERRENO",null,"JEFE OBRA",null,"CAPATAZ",null,"J. TERRENO",null,"CAPATAZ",null,"CAPATAZ",null,"CAPATAZ",null,"CAPATAZ",null,"CAPATAZ",null,"CAPATAZ",null,"SUPERVISOR",null,"SUPERVISOR",null,"Parciales"]
[null,null,null,"BELISARIO BALCAZAR",null,null,null,"SEBASTIAN SOTELO",null,"VICTOR HERRERA",null,"IBACETA DANIEL ",null,"JOSE DONOSO PEÑA",null,"LUIS FUENTES",null,"JOSÉ PEÑAILILLO",null,"MARCO CARREÑO",null,"JONATHAN DEPAULO"]
[]
[null,"Capataces",null,0,null,null,null,7]
[]
[null,"Riggers"]
[null,null,null,0]
[null,"Trazadores",null,0]
[]
[null,"Ayudantes Trazadores",null,0]
[]
[null,"Carpinteros Obra Gruesa",null,1]
[]
[null,"Carpintero Seguridad"]
[]
[null,"Carpinteros Terminacion",null,null,null,null,null,null,null,1]
[]
[null,"Ayudantes Carpinteria"]
[]
[null,"Albañiles \\ Fachada"]
[]
[null,"Albañiles Obra Gruesa"]
[]
[null,"Ayudantes Albañiles"]
[null,null,null,null,1]
[null,"Operador Montacarga"]
[]
[null,"Concreteros / Descimbre",null,0]
[null,null,null,null,1]
[null,"Vibradorista"]
[]
[null,"Jornales",null,3,null,null,null,null,null,4]
[]
[null,"Maestro Mantención",null,0]
[]
[null,"Maestro Vibrador"]
[]
[null,"Total Terreno",null,{"$f":"SUM(D11,D13,D15,D17,D19,D21,D23,D25,D27,D29,D31,D33,D35,D37,D39,D41,D43)","v":4},{"$f":"SUM(E11,E13,E15,E17,E19,E21,E23,E25,E27,E29,E31,E33,E35,E37,E39,E41,E43)","v":0},{"$f":"SUM(F11,F13,F15,F17,F19,F21,F23,F25,F27,F29,F31,F33,F35,F37,F39,F41,F43)","v":0},{"$f":"SUM(G11,G13,G15,G17,G19,G21,G23,G25,G27,G29,G31,G33,G35,G37,G39,G41,G43)","v":0},{"$f":"SUM(H11,H13,H15,H17,H19,H21,H23,H25,H27,H29,H31,H33,H35,H37,H39,H41,H43)","v":7},null,{"$f":"SUM(J11,J13,J15,J17,J19,J21,J23,J25,J27,J29,J31,J33,J35,J37,J39,J41,J43)","v":5},null,{"$f":"SUM(L11,L13,L15,L17,L19,L21,L23,L25,L27,L29,L31,L33,L35,L37,L39,L41,L43)","v":0},null,{"$f":"SUM(N11,N13,N15,N17,N19,N21,N23,N25,N27,N29,N31,N33,N35,N37,N39,N41,N43)","v":0},null,{"$f":"SUM(P11,P13,P15,P17,P19,P21,P23,P25,P27,P29,P31,P33,P35,P37,P39,P41,P43)","v":0},null,{"$f":"SUM(R11,R13,R15,R17,R19,R21,R23,R25,R27,R29,R31,R33,R35,R37,R39,R41,R43)","v":0},null,{"$f":"SUM(T11,T13,T15,T17,T19,T21,T23,T25,T27,T29,T31,T33,T35,T37,T39,T41,T43)","v":0},null,{"$f":"SUM(V11,V13,V15,V17,V19,V21,V23,V25,V27,V29,V31,V33,V35,V37,V39,V41,V43)","v":0},null,{"$f":"SUM(X11,X13,X15,X17,X19,X21,X23,X25,X27,X29,X31,X33,X35,X37,X39,X41,X43)","v":0},null,{"$f":"SUM(Z11,Z13,Z15,Z17,Z19,Z21,Z23,Z25,Z27,Z29,Z31,Z33,Z35,Z37,Z39,Z41,Z43)","v":0}]
[]
[null,"Personal Administrativo",null,"Asistencia",null,null,null,null,null,null,null,null,null,null,null,null,null,null,null,null,null,null,null,null,null,"TOTALES"]
[]
[]
[null,"Administrador de Obra",null,1,null,null,null,null,null,null,null,null,null,null,null,null,null,null,null,null,null,null,null,null,null,{"$f":"+D50-SUM(F50,H50,J50,L50,N50,P50,R50,T50,V50,X50)","v":1}]
[]
[null,"Jefe de Terreno",null,1,null,null,null,null,null,null,null,null,null,null,null,null,null,null,null,null,null,null,null,null,null,{"$f":"+D52-SUM(F52,H52,J52,L52,N52,P52,R52,T52,V52,X52)","v":1}]
[null,null,3]
[null,"Jefe de Obra ",2,1,null,null,null,null,null,null,null,null,null,null,null,null,null,null,null,null,null,null,null,null,null,{"$f":"+D54-SUM(F54,H54,J54,L54,N54,P54,R54,T54,V54,X54)","v":1}]
[null,null,6]
[null,"Profesional de Terrreno",null,2,null,null,null,null,null,null,null,null,null,null,null,null,null,null,null,null,null,null,null,null,null,{"$f":"+D56-SUM(F56,H56,J56,L56,N56,P56,R56,T56,V56,X56)","v":2}]
[]
[null,"Supervisor Terminaciones",8,0,null,null,null,null,null,null,null,null,null,null,null,null,null,null,null,null,null,null,null,null,null,{"$f":"+D58-SUM(F58,H58,J58,L58,N58,P58,R58,T58,V58,X58)","v":0}]
[]
[null,"Prevencion de Riesgos",null,1,null,null,null,null,null,null,null,null,null,null,null,null,null,null,null,null,null,null,null,null,null,{"$f":"+D60-SUM(F60,H60,J60,L60,N60,P60,R60,T60,V60,X60)","v":1}]
[]
[null,"Ayte. Prevencion de Riesgos",null,1,null,null,null,null,null,null,null,null,null,null,null,null,null,null,null,null,null,null,null,null,null,{"$f":"+D62-SUM(F62,H62,J62,L62,N62,P62,R62,T62,V62,X62)","v":1}]
[null,null,11]
[null,"Jefe Oficina Tecnica",null,1,null,null,null,null,null,null,null,null,null,null,null,null,null,null,null,null,null,null,null,null,null,{"$f":"+D64-SUM(F64,H64,J64,L64,N64,P64,R64,T64,V64,X64)","v":1}]
[null,null,1]
[null,"Ayte.Oficina Tecnica",null,1,null,null,null,null,null,null,null,null,null,null,null,null,null,null,null,null,null,null,null,null,null,{"$f":"+D66-SUM(F66,H66,J66,L66,N66,P66,R66,T66,V66,X66)","v":1}]
[null,null,1]
[null,"Encargado de Personal",null,1,null,null,null,null,null,null,null,null,null,null,null,null,null,null,null,null,null,null,null,null,null,{"$f":"+D68-SUM(F68,H68,J68,L68,N68,P68,R68,T68,V68,X68)","v":1}]
[]
[null,"A. Personal ",17,null,null,null,null,null,null,null,null,null,null,null,null,null,null,null,null,null,null,null,null,null,null,{"$f":"+D70-SUM(F70,H70,J70,L70,N70,P70,R70,T70,V70,X70)","v":0}]
[]
[null,"Encargado de Adquisiciones",null,1,null,null,null,null,null,null,null,null,null,null,null,null,null,null,null,null,null,null,null,null,null,{"$f":"+D72-SUM(F72,H72,J72,L72,N72,P72,R72,T72,V72,X72)","v":1}]
[null,null,2]
[null,"Encargado de Bodega",null,null,null,null,null,null,null,null,null,null,null,null,null,null,null,null,null,null,null,null,null,null,null,{"$f":"+D74-SUM(F74,H74,J74,L74,N74,P74,R74,T74,V74,X74)","v":0}]
[]
[null,"Asistente de Bodega",null,1,null,null,null,null,null,null,null,null,null,null,null,null,null,null,null,null,null,null,null,null,null,{"$f":"+D76-SUM(F76,H76,J76,L76,N76,P76,R76,T76,V76,X76)","v":1}]
[]
[null,"Pañolero",null,1,null,null,null,null,null,null,null,null,null,null,null,null,null,null,null,null,null,null,null,null,null,{"$f":"+D78-SUM(F78,H78,J78,L78,N78,P78,R78,T78,V78,X78)","v":1}]
[]
[null,"Junior - Aseo ",null,1,null,null,null,null,null,null,null,null,null,null,null,null,null,null,null,null,null,null,null,null,null,{"$f":"+D80-SUM(F80,H80,J80,L80,N80,P80,R80,T80,V80,X80)","v":1}]
[]
[null,"Jornal - Aseo",null,null,null,null,null,null,null,null,null,null,null,null,null,null,null,null,null,null,null,null,null,null,null,{"$f":"+D82-SUM(F82,H82,J82,L82,N82,P82,R82,T82,V82,X82)","v":0}]
[]
[null,"Practica O.T.",null,null,null,null,null,null,null,null,null,null,null,null,null,null,null,null,null,null,null,null,null,null,null,{"$f":"+D84-SUM(F84,H84,J84,L84,N84,P84,R84,T84,V84,X84)","v":0}]
[]
[null,null,null,{"$f":"SUM(D50:D85)","v":14},null,{"$f":"SUM(F50:F85)","v":0},0,0,0,0,0,0,0,0,0,0,0,0,0,0,0,0,0,0,0,14]
[]
[null,null,null,null,null,null,null,null,null,null,null,null,null,null,null,null,null,null,null,"TOTAL GENERAL",null,null,null,{"$f":"+Z86+Z45","v":14}]